bitfinex/quotes_BTCUSD_20250101
["timestamp","ask_amount","ask_price","bid_price","bid_amount"]
[1735714859355,0.34197397,93905.0,93904.0,0.08650807]
[1735714860178,0.15,93905.0,93904.0,0.08650807]
[1735714860646,0.15,93905.0,93904.0,0.19066499]
[1735714860859,0.3630633,93906.0,93905.0,0.07850807]
[1735714861076,0.3630633,93906.0,93905.0,0.25889439]
[1735714862958,0.3630633,93906.0,93905.0,0.26489439]
[1735714863373,0.3630633,93906.0,93905.0,0.18249439]
[1735714863567,0.3630633,93906.0,93905.0,0.18849439]
[1735714863806,0.3630633,93906.0,93905.0,0.007]
[1735714864487,0.3630633,93906.0,93905.0,0.006]
[1735714864708,0.3630633,93906.0,93905.0,0.007]
[1735714865161,0.3630633,93906.0,93905.0,0.001]
[1735714865395,0.3630633,93906.0,93905.0,0.007]
[1735714865643,0.3630633,93906.0,93905.0,0.001]
[1735714866130,0.3630633,93906.0,93905.0,0.004]
[1735714866401,0.3630633,93906.0,93904.0,0.0001706]
[1735714866923,0.3630633,93906.0,93905.0,0.003]
[1735714867129,0.4457633,93906.0,93905.0,0.003]
[1735714868344,0.4457633,93906.0,93904.0,0.0001706]
[1735714868534,0.4457633,93906.0,93904.0,0.0031706]
[1735714868765,0.4457633,93906.0,93904.0,0.0001706]
[1735714869204,0.4467633,93906.0,93904.0,0.0001706]
[1735714869421,0.4457633,93906.0,93904.0,0.0001706]
[1735714869853,0.4467633,93906.0,93904.0,0.0001706]
[1735714883218,0.322247,93905.0,93904.0,0.0001706]
[1735714884476,0.323247,93905.0,93904.0,0.0001706]
[1735714885522,0.001,93905.0,93904.0,0.0001706]
[1735714885752,0.251035,93905.0,93904.0,0.0001706]
[1735714889674,0.401035,93905.0,93904.0,0.0001706]
[1735714890676,0.52651325,93905.0,93904.0,6e-07]
[1735714890901,0.45227825,93905.0,93904.0,6e-07]
[1735714891373,0.24729193,93898.0,93897.0,2e-07]
[1735714891827,1.17304193,93897.0,93896.0,6e-07]
[1735714892035,0.38449093,93897.0,93896.0,6e-07]
[1735714893198,0.43299093,93897.0,93896.0,6e-07]
[1735714893430,0.49710301,93897.0,93896.0,6e-07]
[1735714894543,0.25719626,93897.0,93896.0,6e-07]
[1735714894768,0.26219626,93897.0,93896.0,6e-07]
[1735714895669,0.41219626,93897.0,93896.0,6e-07]
[1735714896398,0.41228156,93897.0,93896.0,6e-07]
[1735714896972,0.51626788,93897.0,93896.0,6e-07]
[1735714897172,0.61626788,93897.0,93896.0,6e-07]
[1735714898760,0.85617463,93897.0,93896.0,6e-07]
[1735714904609,0.61626788,93897.0,93896.0,6e-07]
[1735714912395,0.61626788,93897.0,93880.0,0.0001704]
[1735714912396,0.1,93895.0,93872.0,0.07813945]
[1735714912642,0.363053,93873.0,93872.0,0.07818938]
[1735714914684,0.863053,93873.0,93872.0,0.07818938]
[1735714915647,0.863053,93873.0,93872.0,0.08018938]
[1735714916647,0.863053,93873.0,93872.0,0.07818938]
[1735714917001,0.863053,93873.0,93872.0,0.07918938]
[1735714917443,0.863053,93873.0,93872.0,0.08418938]
[1735714917664,0.863053,93873.0,93872.0,0.07918938]
[1735714917892,0.863053,93873.0,93872.0,0.08318938]
[1735714919558,0.863053,93873.0,93872.0,0.08335998]
[1735714920235,0.863053,93873.0,93872.0,0.08235998]
[1735714920467,0.863053,93873.0,93872.0,0.07835998]
[1735714920708,0.863053,93873.0,93872.0,0.07935998]
[1735714920954,0.863053,93873.0,93872.0,0.07835998]
[1735714921406,0.867053,93873.0,93872.0,0.07835998]
[1735714921624,0.863053,93873.0,93872.0,0.07835998]
[1735714921869,0.867053,93873.0,93872.0,0.07835998]
[1735714922092,0.869053,93873.0,93872.0,0.07835998]
[1735714922745,0.867053,93873.0,93872.0,0.07835998]
[1735714922965,0.869053,93873.0,93872.0,0.07835998]
[1735714923575,0.865053,93873.0,93872.0,0.07835998]
[1735714923805,0.863053,93873.0,93872.0,0.07835998]
[1735714924035,0.866053,93873.0,93872.0,0.00022053]
[1735714924527,0.870053,93873.0,93872.0,0.00022053]
[1735714924755,0.863053,93873.0,93872.0,0.00022053]
[1735714925207,0.868053,93873.0,93872.0,0.00022053]
[1735714925392,0.865053,93873.0,93872.0,0.00022053]
[1735714925643,0.863053,93873.0,93872.0,0.00022053]
[1735714926995,0.863053,93873.0,93872.0,0.00122053]
[1735714929090,0.864053,93873.0,93872.0,0.00122053]
[1735714929337,0.864053,93873.0,93872.0,0.00022053]
[1735714929626,0.863053,93873.0,93872.0,0.00022053]
[1735714930540,0.864053,93873.0,93872.0,0.00022053]
[1735714951631,1.1522328,93873.0,93872.0,0.00022053]
[1735714953748,0.9391798,93873.0,93872.0,0.00022053]
[1735714954747,1.1522328,93873.0,93872.0,0.00022053]
[1735714954956,0.864053,93873.0,93872.0,0.00022053]
[1735714959122,0.57288618,93873.0,93872.0,0.00022053]
[1735714960095,0.71405218,93873.0,93872.0,0.00022053]
[1735714961715,0.86405218,93873.0,93872.0,0.00022053]
[1735714966259,0.59868475,93873.0,93872.0,0.00022053]
[1735714967296,0.86405275,93873.0,93872.0,0.00022053]
[1735714973034,0.364053,93873.0,93872.0,0.00022053]
[1735714974401,1.061766,93873.0,93872.0,0.00022053]
[1735714974625,1.317933,93873.0,93872.0,0.00022053]
[1735714974843,1.036608,93873.0,93872.0,0.00022053]
[1735714975080,1.005471,93873.0,93872.0,0.00022053]
[1735714976277,1.02216754,93873.0,93872.0,0.00022053]
[1735714977487,1.005471,93873.0,93872.0,0.00022053]
[1735714977697,1.0055563,93873.0,93872.0,0.00022053]
[1735714979884,0.7544273,93873.0,93872.0,0.00022053]
[1735714980509,0.3641383,93873.0,93872.0,0.00022053]
[1735714980985,0.7544273,93873.0,93872.0,0.00022053]
[1735714981200,0.6450493,93873.0,93872.0,0.00022053]
[1735714981442,0.6450493,93873.0,93872.0,5.3e-07]
[1735714981443,0.5555283,93873.0,93872.0,5.3e-07]
[1735714981649,0.3641383,93873.0,93872.0,5.3e-07]
[1735714986214,0.38083567,93873.0,93872.0,5.3e-07]
[1735714987463,0.3641383,93873.0,93872.0,5.3e-07]
[1735714996154,0.38083588,93873.0,93872.0,5.3e-07]
[1735714997564,0.3641383,93873.0,93872.0,5.3e-07]
[1735715000705,0.38083593,93873.0,93872.0,5.3e-07]
[1735715001782,0.3641383,93873.0,93872.0,5.3e-07]
[1735715003157,0.14764233,93873.0,93872.0,5.3e-07]
[1735715003586,0.36069533,93873.0,93872.0,5.3e-07]
[1735715004471,0.86069533,93873.0,93872.0,5.3e-07]
[1735715004891,0.87739309,93873.0,93872.0,5.3e-07]
[1735715005120,0.88339309,93873.0,93872.0,5.3e-07]
[1735715005990,0.86669533,93873.0,93872.0,5.3e-07]
[1735715007635,1.15539309,93873.0,93872.0,5.3e-07]
[1735715014379,0.86669533,93873.0,93872.0,5.3e-07]
[1735715019243,0.363087,93858.0,93857.0,0.0737607]
[1735715019518,0.363087,93858.0,93857.0,0.07385114]
[1735715020348,0.363087,93858.0,93857.0,0.07485114]
[1735715020792,0.37978563,93858.0,93857.0,0.07485114]
[1735715021018,0.87978563,93858.0,93857.0,0.07485114]
[1735715021476,0.87978563,93858.0,93857.0,0.07785114]
[1735715022143,0.87974563,93858.0,93857.0,0.07485114]
[1735715022358,0.87974563,93858.0,93857.0,0.07385114]
[1735715022577,0.87974563,93858.0,93857.0,0.07585114]
[1735715022835,0.87974563,93858.0,93857.0,0.07685114]
[1735715023216,0.66669863,93858.0,93857.0,0.07685114]
[1735715023617,0.87978563,93858.0,93857.0,0.07685114]
[1735715024485,0.87978563,93858.0,93857.0,0.07702174]
[1735715027442,0.863087,93858.0,93857.0,0.07702174]
[1735715032247,0.87978562,93858.0,93857.0,0.07702174]
[1735715035957,0.87987092,93858.0,93857.0,0.07702174]
[1735715036591,0.87987092,93858.0,93857.0,0.07602174]
[1735715036724,0.88087092,93858.0,93857.0,0.07602174]
[1735715037530,0.8641723,93858.0,93857.0,0.07602174]
[1735715038060,0.8641723,93858.0,93857.0,0.07402174]
[1735715039382,0.8651723,93858.0,93857.0,0.07402174]
[1735715040045,0.3651723,93858.0,93857.0,0.07402174]
[1735715042301,0.38187083,93858.0,93857.0,0.07402174]
[1735715046693,0.3651723,93858.0,93857.0,0.07402174]
[1735715052292,0.1536384,93858.0,93857.0,0.07402174]
[1735715052518,0.0020853,93858.0,93857.0,0.07402174]
[1735715052721,0.2151723,93858.0,93857.0,0.07402174]
[1735715055489,0.38187084,93858.0,93857.0,0.07402174]
[1735715057707,0.3651723,93858.0,93857.0,0.07402174]
[1735715066069,0.38187084,93858.0,93857.0,0.07402174]
[1735715067516,0.3651723,93858.0,93857.0,0.07402174]
[1735715068073,0.3641723,93858.0,93857.0,0.07402174]
[1735715068542,0.3651723,93858.0,93857.0,0.07402174]
[1735715069034,0.3641723,93858.0,93857.0,0.07402174]
[1735715069672,0.3651723,93858.0,93857.0,0.07402174]
[1735715071605,0.002,93858.0,93857.0,0.07402174]
[1735715071754,0.215087,93858.0,93857.0,0.07402174]
[1735715072415,0.40749383,93858.0,93857.0,0.07402174]
[1735715074291,0.365087,93858.0,93857.0,0.07402174]
[1735715078009,0.55749292,93858.0,93857.0,0.07402174]
[1735715082336,0.55757822,93858.0,93857.0,0.07402174]
[1735715082764,0.3651723,93858.0,93857.0,0.07402174]
[1735715083201,0.3651723,93858.0,93857.0,0.00026104]
[1735715085715,0.38186993,93858.0,93857.0,0.00026104]
[1735715086412,0.213108,93849.0,93848.0,0.07497613]
[1735715086610,0.213108,93849.0,93848.0,0.07502608]
[1735715087503,0.213108,93849.0,93848.0,0.07602608]
[1735715087980,0.213108,93849.0,93848.0,0.07902608]
[1735715088687,0.21799255,93851.0,93848.0,0.07902608]
[1735715088913,0.17799255,93851.0,93848.0,0.07902608]
[1735715089123,0.17799255,93851.0,93848.0,0.07602608]
[1735715089371,0.001,93849.0,93848.0,0.07602608]
[1735715089808,0.214108,93849.0,93848.0,0.07602608]
[1735715090034,0.214108,93849.0,93848.0,0.07502608]
[1735715090263,0.215108,93849.0,93848.0,0.07502608]
[1735715091181,0.214108,93849.0,93848.0,0.07502608]
[1735715092057,0.215108,93849.0,93848.0,0.07502608]
[1735715092291,0.23180588,93849.0,93848.0,0.07502608]
[1735715093467,0.23180588,93849.0,93848.0,0.07519668]
[1735715093934,0.23189118,93849.0,93848.0,0.07519668]
[1735715096224,0.23089118,93849.0,93848.0,0.07519668]
[1735715096442,0.22989118,93849.0,93848.0,0.07519668]
[1735715096660,0.23189118,93849.0,93848.0,0.07519668]
[1735715097126,0.23089118,93849.0,93848.0,0.07519668]
[1735715097598,0.2141933,93849.0,93848.0,0.07519668]
[1735715097916,0.2131933,93849.0,93848.0,0.07519668]
[1735715098230,0.2131933,93849.0,93848.0,0.07619668]
[1735715102110,0.22989109,93849.0,93848.0,0.07619668]
[1735715107575,0.2131933,93849.0,93848.0,0.07619668]
[1735715107800,0.23068816,93851.0,93848.0,0.07619668]
[1735715108016,0.0279324,93851.0,93848.0,0.07619668]
[1735715108298,0.213108,93849.0,93848.0,0.07619668]
[1735715109217,0.213108,93849.0,93848.0,0.07519668]
[1735715109918,0.213108,93849.0,93848.0,0.07619668]
[1735715110412,8.53e-05,93851.0,93850.0,0.2483]
[1735715110627,8.53e-05,93851.0,93850.0,0.35228632]
[1735715112824,8.53e-05,93851.0,93850.0,0.35828632]
[1735715113040,8.53e-05,93851.0,93850.0,0.35228632]
[1735715113465,8.53e-05,93851.0,93850.0,0.36528632]
[1735715122199,0.01678134,93858.0,93853.0,0.023]
[1735715122430,0.01678134,93858.0,93854.0,0.10398632]
[1735715122633,0.213092,93856.0,93854.0,0.10398632]
[1735715125072,0.213092,93856.0,93854.0,0.11098632]
[1735715125733,0.213092,93856.0,93854.0,0.11398632]
[1735715129812,0.22978799,93856.0,93854.0,0.11398632]
[1735715131199,8.53e-05,93858.0,93855.0,0.0752]
[1735715131415,8.53e-05,93858.0,93856.0,0.10398632]
[1735715131875,0.02374064,93857.0,93856.0,0.10398632]
[1735715132844,0.02374064,93857.0,93856.0,0.11098632]
[1735715133046,0.02374064,93857.0,93856.0,0.10698632]
[1735715133272,0.02374064,93857.0,93856.0,0.11398632]
[1735715133477,0.23683064,93857.0,93856.0,0.11398632]
[1735715137078,0.25352702,93857.0,93856.0,0.11398632]
[1735715137477,0.23683064,93857.0,93856.0,0.11398632]
[1735715144526,0.23683064,93857.0,93856.0,0.21398632]
[1735715148508,0.23683064,93857.0,93856.0,0.01]
[1735715156208,0.23683064,93857.0,93856.0,0.0101706]
[1735715156435,0.23691594,93857.0,93856.0,0.0101706]
[1735715162144,0.02115651,93857.0,93856.0,0.0101706]
[1735715162326,0.02107935,93857.0,93856.0,0.0101706]
[1735715162789,0.23416935,93857.0,93856.0,0.0101706]
[1735715165662,0.25086575,93857.0,93856.0,0.0101706]
[1735715169773,0.23416935,93857.0,93856.0,0.0101706]
[1735715172899,0.25086585,93857.0,93856.0,0.0101706]
[1735715173124,0.23416935,93857.0,93856.0,0.0101706]
[1735715173325,0.17298852,93859.0,93856.0,0.0101706]
[1735715173552,0.01361368,93857.0,93856.0,0.0101706]
[1735715173753,0.21325259,93857.0,93856.0,0.0101706]
[1735715174191,0.21325259,93857.0,93856.0,0.0071706]
[1735715174586,0.21325259,93857.0,93856.0,0.0091706]
[1735715174790,0.21325259,93857.0,93856.0,0.0021706]
[1735715175031,0.21325259,93857.0,93856.0,0.0061706]
[1735715175496,0.21325259,93857.0,93856.0,0.0001706]
[1735715175667,0.21325259,93857.0,93856.0,0.0071706]
[1735715176491,0.22994905,93857.0,93856.0,0.0071706]
[1735715176710,0.21325259,93857.0,93856.0,0.0071706]
[1735715176910,0.21325259,93857.0,93856.0,0.0101706]
[1735715177204,0.21325259,93857.0,93856.0,0.0031706]
[1735715177513,0.21325259,93857.0,93856.0,0.0041706]
[1735715177726,0.21325259,93857.0,93856.0,0.0061706]
[1735715178280,0.21325259,93857.0,93856.0,0.0021706]
[1735715178453,0.21325259,93857.0,93856.0,0.0061706]
[1735715178675,0.21325259,93857.0,93856.0,0.0021706]
[1735715179841,0.2299502,93857.0,93856.0,0.0021706]
[1735715179979,0.2299502,93857.0,93856.0,0.0001706]
[1735715180215,0.2299502,93857.0,93856.0,0.0041706]
[1735715180595,0.2299502,93857.0,93856.0,0.0061706]
[1735715181019,0.24340129,93857.0,93856.0,0.0061706]
[1735715182014,0.24340129,93857.0,93856.0,0.0001706]
[1735715183199,0.24340129,93857.0,93856.0,0.0061706]
[1735715183660,0.19249147,93864.0,93856.0,0.0061706]
[1735715183882,0.22443473,93857.0,93856.0,0.0051706]
[1735715184064,0.21321194,93857.0,93856.0,0.0071706]
[1735715184428,0.22990833,93857.0,93856.0,0.0071706]
[1735715184662,0.21321194,93857.0,93856.0,0.0001706]
[1735715184866,0.21321194,93857.0,93856.0,0.0021706]
[1735715185116,0.21321194,93857.0,93856.0,0.0001706]
[1735715186523,0.21321194,93857.0,93856.0,0.0021706]
[1735715186725,0.21321194,93857.0,93856.0,0.0071706]
[1735715187875,0.22990843,93857.0,93856.0,0.0071706]
[1735715189004,0.21321194,93857.0,93856.0,0.0071706]
[1735715189791,0.21321194,93857.0,93856.0,0.0001706]
[1735715189990,0.21321194,93857.0,93856.0,0.0031706]
[1735715190219,0.21321194,93857.0,93856.0,0.0041706]
[1735715191328,0.22442781,93857.0,93856.0,0.0041706]
[1735715194641,0.22436259,93857.0,93856.0,0.0041706]
[1735715194855,0.41685406,93857.0,93856.0,0.0041706]
[1735715196654,0.43355062,93857.0,93856.0,0.0041706]
[1735715197959,0.41685406,93857.0,93856.0,0.0041706]
[1735715199714,0.22436259,93857.0,93856.0,0.0041706]
[1735715201190,0.24105915,93857.0,93856.0,0.0041706]
[1735715201636,0.22436259,93857.0,93856.0,0.0041706]
[1735715204714,0.24105915,93857.0,93856.0,0.0041706]
[1735715205134,0.22436259,93857.0,93856.0,0.0041706]
[1735715207950,0.24105918,93857.0,93856.0,0.0041706]
[1735715208833,0.22436259,93857.0,93856.0,0.0041706]
[1735715212085,0.24105918,93857.0,93856.0,0.0041706]
[1735715218725,0.24114448,93857.0,93856.0,0.0041706]
[1735715242874,0.22444789,93857.0,93856.0,0.0041706]
[1735715245108,0.41696674,93857.0,93856.0,0.0041706]
[1735715254590,0.64396674,93857.0,93856.0,0.0041706]
[1735715255033,0.45142334,93857.0,93856.0,0.0041706]
[1735715255890,0.45142334,93857.0,93856.0,0.0031706]
[1735715256594,0.45142334,93857.0,93856.0,0.0001706]
[1735715257226,0.45242334,93857.0,93856.0,0.0001706]
[1735715257447,0.45442334,93857.0,93856.0,0.0001706]
[1735715257884,0.37742334,93857.0,93856.0,0.0001706]
[1735715258105,0.39412176,93857.0,93856.0,0.0001706]
[1735715258324,0.44212176,93857.0,93856.0,0.0001706]
[1735715258538,0.51912176,93857.0,93856.0,0.0001706]
[1735715259236,0.50242334,93857.0,93856.0,0.0001706]
[1735715260227,0.28889143,93857.0,93856.0,0.0001706]
[1735715261786,0.50198143,93857.0,93856.0,0.0001706]
[1735715262364,0.51867998,93857.0,93856.0,0.0001706]
[1735715262630,0.50198143,93857.0,93856.0,0.0001706]
[1735715263374,0.69421736,93857.0,93856.0,0.0001706]
[1735715263772,0.69421736,93857.0,93856.0,6e-07]
[1735715263773,0.94862568,93857.0,93856.0,6e-07]
[1735715264034,0.79820368,93857.0,93856.0,6e-07]
[1735715264807,0.60596775,93857.0,93856.0,6e-07]
[1735715265430,0.62275214,93857.0,93856.0,6e-07]
[1735715266502,0.363103,93851.0,93850.0,8e-07]
[1735715266927,0.4526616,93851.0,93850.0,8e-07]
[1735715267350,0.55664792,93851.0,93850.0,8e-07]
[1735715267992,0.19354492,93851.0,93850.0,8e-07]
[1735715268205,0.19654492,93851.0,93850.0,8e-07]
[1735715268635,0.64998312,93851.0,93850.0,8e-07]
[1735715269745,0.40964792,93851.0,93850.0,8e-07]
[1735715269962,0.40864792,93851.0,93850.0,8e-07]
[1735715270209,0.56264792,93851.0,93850.0,8e-07]
[1735715272842,0.75461484,93851.0,93850.0,8e-07]
[1735715273458,0.77131438,93851.0,93850.0,8e-07]
[1735715273881,0.57934746,93851.0,93850.0,8e-07]
[1735715280122,0.56264792,93851.0,93850.0,8e-07]
[1735715281752,2.253717,93850.0,93845.0,9.5e-07]
[1735715281905,0.15,93848.0,93845.0,5.088e-05]
[1735715282133,0.363115,93846.0,93845.0,5.088e-05]
[1735715282367,1.72507,93846.0,93845.0,5.088e-05]
[1735715282600,1.82905632,93846.0,93845.0,5.088e-05]
[1735715283271,2.21369382,93846.0,93845.0,5.088e-05]
[1735715283714,2.16398582,93846.0,93845.0,5.088e-05]
[1735715283934,0.95080182,93846.0,93845.0,5.088e-05]
[1735715284155,2.08808982,93846.0,93845.0,5.088e-05]
[1735715284361,2.07138932,93846.0,93845.0,5.088e-05]
[1735715284571,2.43690568,93846.0,93845.0,5.088e-05]
[1735715285022,2.43690568,93846.0,93845.0,8.8e-07]
[1735715285266,1.29961768,93846.0,93845.0,8.8e-07]
[1735715285713,1.29967942,93846.0,93845.0,8.8e-07]
[1735715286544,1.15996306,93846.0,93845.0,8.8e-07]
[1735715287577,1.17666382,93846.0,93845.0,8.8e-07]
[1735715287932,0.95086382,93846.0,93845.0,8.8e-07]
[1735715288389,0.95086382,93846.0,93845.0,0.00017148]
[1735715288595,0.93416306,93846.0,93845.0,0.00017148]
[1735715288801,2.03603106,93846.0,93845.0,0.00017148]
[1735715289737,2.02379906,93846.0,93845.0,0.00017148]
[1735715291978,2.03398793,93846.0,93845.0,0.00017148]
[1735715294531,2.00452893,93846.0,93845.0,0.00017148]
[1735715294723,1.85712693,93846.0,93845.0,0.00017148]
[1735715295125,1.81415793,93846.0,93845.0,0.00017148]
[1735715295277,2.05384548,93846.0,93845.0,0.00017148]
[1735715295733,1.61722316,93846.0,93845.0,0.00017148]
[1735715295959,1.57435116,93846.0,93845.0,0.00017148]
[1735715296245,1.42584716,93846.0,93845.0,0.00017148]
[1735715297074,1.42084716,93846.0,93845.0,0.00017148]
[1735715297259,1.37966916,93846.0,93845.0,0.00017148]
[1735715297510,1.38166916,93846.0,93845.0,0.00017148]
[1735715297707,1.38066916,93846.0,93845.0,0.00017148]
[1735715298599,1.38166916,93846.0,93845.0,0.00017148]
[1735715299326,1.14198161,93846.0,93845.0,0.00017148]
[1735715299885,1.14206691,93846.0,93845.0,0.00017148]
[1735715304781,0.83545091,93846.0,93845.0,0.00017148]
[1735715305004,1.23407691,93846.0,93845.0,0.00017148]
[1735715308613,0.91096191,93846.0,93845.0,0.00017148]
[1735715309635,1.12407691,93846.0,93845.0,0.00017148]
[1735715311358,1.11998877,93846.0,93845.0,0.00017148]
[1735715311585,1.26998877,93846.0,93845.0,0.00017148]
[1735715315204,0.87136277,93846.0,93845.0,0.00017148]
[1735715315423,1.26444177,93846.0,93845.0,0.00017148]
[1735715318258,1.26444177,93846.0,93845.0,0.13067148]
[1735715318490,0.87136277,93846.0,93845.0,0.13067148]
[1735715319411,1.13653077,93846.0,93845.0,0.13067148]
[1735715319871,1.13653077,93846.0,93845.0,0.08287148]
[1735715319872,1.42530904,93846.0,93845.0,0.08287148]
[1735715320185,1.42530904,93846.0,93845.0,0.00017148]
[1735715320758,1.13653077,93846.0,93845.0,0.00017148]
[1735715322258,1.1361461,93846.0,93845.0,0.00017148]
[1735715322711,1.1351461,93846.0,93845.0,0.00017148]
[1735715322934,1.1341461,93846.0,93845.0,0.00017148]
[1735715323181,1.1381461,93846.0,93845.0,0.00017148]
[1735715323367,1.42490709,93846.0,93845.0,0.00017148]
[1735715323590,1.42790709,93846.0,93845.0,0.00017148]
[1735715324241,1.42590709,93846.0,93845.0,0.00017148]
[1735715324788,1.42790709,93846.0,93845.0,0.00017148]
[1735715325406,1.1395301,93846.0,93845.0,0.00017148]
[1735715325760,1.1365301,93846.0,93845.0,0.00017148]
[1735715325970,1.1345301,93846.0,93845.0,0.00017148]
[1735715326176,1.1395301,93846.0,93845.0,0.00017148]
[1735715330117,0.15,93845.0,93844.0,8e-08]
[1735715330330,0.59643168,93845.0,93844.0,8e-08]
[1735715330552,0.25906051,93845.0,93844.0,8e-08]
[1735715331002,0.27576078,93845.0,93844.0,8e-08]
[1735715331888,0.2758117,93845.0,93844.0,8e-08]
[1735715332327,0.2788117,93845.0,93844.0,8e-08]
[1735715333054,0.2798117,93845.0,93844.0,8e-08]
[1735715333383,0.2788117,93845.0,93844.0,8e-08]
[1735715334218,0.2798117,93845.0,93844.0,8e-08]
[1735715337483,0.26311143,93845.0,93844.0,8e-08]
[1735715341791,0.26211143,93845.0,93844.0,8e-08]
[1735715341991,0.26411143,93845.0,93844.0,8e-08]
[1735715342226,0.28081174,93845.0,93844.0,8e-08]
[1735715342440,0.27781174,93845.0,93844.0,8e-08]
[1735715342657,0.27881174,93845.0,93844.0,8e-08]
[1735715342912,0.28081174,93845.0,93844.0,8e-08]
[1735715343150,0.27781174,93845.0,93844.0,8e-08]
[1735715343364,0.28081174,93845.0,93844.0,8e-08]
[1735715344574,0.17682542,93845.0,93844.0,8e-08]
[1735715344781,0.17682542,93845.0,93844.0,0.07970008]
[1735715345109,0.17682542,93845.0,93844.0,8e-08]
[1735715345110,0.1767745,93845.0,93844.0,8e-08]
[1735715345568,0.17481567,93845.0,93844.0,8e-08]
[1735715345802,0.17581567,93845.0,93844.0,8e-08]
[1735715346023,0.27988729,93845.0,93844.0,8e-08]
[1735715346456,0.27688729,93845.0,93844.0,8e-08]
[1735715346914,0.27788729,93845.0,93844.0,8e-08]
[1735715347103,0.26118698,93845.0,93844.0,8e-08]
[1735715347752,0.26114581,93845.0,93844.0,8e-08]
[1735715348077,0.26118722,93845.0,93844.0,8e-08]
[1735715348534,0.15,93843.0,93830.0,0.0797]
[1735715348758,0.363149,93831.0,93830.0,0.0797]
[1735715349099,0.36822533,93831.0,93830.0,0.0797]
[1735715349326,0.36827125,93831.0,93830.0,0.0797]
[1735715350007,0.36822533,93831.0,93830.0,0.0797]
[1735715350504,0.86922533,93831.0,93830.0,0.0857]
[1735715351470,0.86922533,93831.0,93830.0,0.133]
[1735715352354,0.86926896,93831.0,93830.0,0.135]
[1735715353123,0.86922533,93831.0,93830.0,0.135]
[1735715353343,0.36922533,93831.0,93830.0,0.135]
[1735715353575,0.36926658,93831.0,93830.0,0.135]
[1735715357666,0.60972446,93831.0,93830.0,0.135]
[1735715358637,0.60972446,93831.0,93830.0,0.1351706]
[1735715359455,0.36926658,93831.0,93830.0,0.1351706]
[1735715359904,0.36926658,93831.0,93830.0,0.0878706]
[1735715363095,0.36926658,93831.0,93830.0,0.0081706]
[1735715364450,0.02963264,93831.0,93830.0,0.0081706]
[1735715364657,0.00611758,93831.0,93830.0,0.0081706]
[1735715365711,0.36926658,93831.0,93830.0,0.0081706]
[1735715367390,0.3859678,93831.0,93830.0,0.0081706]
[1735715367583,0.36926658,93831.0,93830.0,0.0081706]
[1735715372452,0.36922533,93831.0,93830.0,0.0081706]
[1735715372674,0.93273014,93831.0,93830.0,0.0081706]
[1735715373117,1.14587914,93831.0,93830.0,0.0081706]
[1735715373458,0.90535408,93831.0,93830.0,0.0001706]
[1735715376112,0.92205636,93831.0,93830.0,0.0001706]
[1735715377689,0.90535408,93831.0,93830.0,0.0001706]
[1735715378687,0.36826708,93831.0,93830.0,0.0001706]
[1735715383864,0.36835238,93831.0,93830.0,0.0001706]
[1735715393390,0.04894624,93831.0,93830.0,0.0001706]
[1735715393665,8.53e-05,93831.0,93830.0,0.0001706]
[1735715393897,0.00474548,93831.0,93830.0,0.0001706]
[1735715394111,0.2132343,93831.0,93830.0,0.0001706]
[1735715394301,0.21746797,93831.0,93830.0,0.0001706]
[1735715394513,0.40977382,93831.0,93830.0,0.0001706]
[1735715394707,0.42647526,93831.0,93830.0,0.0001706]
[1735715394926,0.42651748,93831.0,93830.0,0.0001706]
[1735715396166,0.23421163,93831.0,93830.0,0.0001706]
[1735715396426,0.23416941,93831.0,93830.0,0.0001706]
[1735715397737,0.21746797,93831.0,93830.0,0.0001706]
[1735715400151,0.21846797,93831.0,93830.0,0.0001706]
[1735715400599,0.36746797,93831.0,93830.0,0.0031706]
[1735715401006,0.36746797,93831.0,93830.0,0.0041706]
[1735715405959,0.36751019,93831.0,93830.0,0.0041706]
[1735715406395,0.38421161,93831.0,93830.0,0.0041706]
[1735715406620,0.38421161,93831.0,93830.0,0.0031706]
[1735715407586,0.36751019,93831.0,93830.0,0.0001706]
[1735715407849,0.36746797,93831.0,93830.0,0.0001706]
[1735715408247,0.36746797,93831.0,93830.0,0.0011706]
[1735715409046,0.00431897,93831.0,93830.0,0.24076678]
[1735715409485,0.00431897,93831.0,93830.0,0.26376678]
[1735715409697,0.00431897,93831.0,93830.0,0.35935692]
[1735715410266,0.00437484,93831.0,93830.0,0.35935692]
[1735715410888,0.00437484,93831.0,93830.0,0.36035692]
[1735715411145,0.00437484,93831.0,93830.0,0.35935692]
[1735715411378,0.00537484,93831.0,93830.0,0.36635692]
[1735715412220,0.00537484,93831.0,93830.0,0.36535692]
[1735715412592,0.00537484,93831.0,93830.0,0.36835692]
[1735715416155,0.02207226,93831.0,93830.0,0.36835692]
[1735715416797,0.02201639,93831.0,93830.0,0.36835692]
[1735715416953,0.01778272,93831.0,93830.0,0.36835692]
[1735715417355,0.0010853,93831.0,93830.0,0.36835692]
[1735715418195,0.0010853,93831.0,93830.0,0.40523173]
[1735715418881,0.0010853,93831.0,93830.0,0.36835692]
[1735715432881,0.00113615,93831.0,93830.0,0.36835692]
[1735715433335,0.0010853,93831.0,93830.0,0.36835692]
[1735715435775,0.0010853,93831.0,93830.0,0.31955692]
[1735715439321,0.0010853,93831.0,93830.0,0.36735692]
[1735715447566,0.0010853,93831.0,93830.0,0.31955692]
[1735715448004,0.01008954,93831.0,93830.0,0.31955692]
[1735715453873,0.01008618,93831.0,93830.0,0.31955692]
[1735715462736,0.00908618,93831.0,93830.0,0.31255692]
[1735715462900,0.00908618,93831.0,93830.0,0.30955692]
[1735715463138,0.01008618,93831.0,93830.0,0.32055692]
[1735715463305,0.00908618,93831.0,93830.0,0.31255692]
[1735715463717,0.00908618,93831.0,93830.0,0.30955692]
[1735715463918,0.00908618,93831.0,93830.0,0.31455692]
[1735715464123,0.01008618,93831.0,93830.0,0.32355692]
[1735715465477,0.0010853,93831.0,93830.0,0.32355692]
[1735715465649,0.0010853,93831.0,93830.0,0.36975692]
[1735715466068,0.0010853,93831.0,93830.0,0.24115692]
[1735715466292,0.0010853,93831.0,93830.0,0.32305692]
[1735715466870,0.19245933,93844.0,93831.0,0.023]
[1735715467054,0.00901119,93843.0,93833.0,0.023]
[1735715467257,0.00901119,93843.0,93835.0,0.023]
[1735715467468,0.00901119,93843.0,93830.0,0.1960706]
[1735715467469,0.00901119,93843.0,93837.0,0.023]
[1735715467683,0.21313,93840.0,93839.0,0.023]
[1735715467900,0.22213807,93840.0,93839.0,0.12698632]
[1735715468771,0.00900807,93840.0,93839.0,0.12698632]
[1735715469219,0.213124,93842.0,93839.0,0.12698632]
[1735715469423,0.213124,93842.0,93841.0,0.1049]
[1735715469626,0.213124,93842.0,93841.0,0.12698632]
[1735715470829,0.213124,93842.0,93841.0,0.12898632]
[1735715471914,0.23117669,93842.0,93841.0,0.12898632]
[1735715472229,0.23117669,93842.0,93841.0,0.13498632]
[1735715472358,0.23217669,93842.0,93841.0,0.13498632]